Cogmind - Beta 15 @@@ ROGUE MODE // 2025.05.26 @ 18:30:20 Player: deadnoob Result: Destroyed by 7V-RTL with Dispersion Rifle Performance ------------- Evolutions (1) 500 Regions Visited (6) 1200 Robots Destroyed (76) 380 Value Destroyed (1249) 1249 Prototype IDs (43) 860 Alien Tech Used (0) 0 Bonus (448) 448 TOTAL SCORE: 4637 Bonus ------- Follower Combat Kills 148 Aligned with FarCom 300 Cogmind --------- Core Integrity 0/400 Matter 290/300 Energy 260/280 System Corruption 2% Temperature Cool (9) Movement Treading (320) Ox2 Location -8/Mines Parts ------- > --- POWER (1) -------- Cooled Ion Engine > --- PROPULSION (3) --- Light Treads Light Treads > --- UTILITY (3) ------ Experimental Power Amplifier Huge Storage Unit > --- WEAPON (2) ------- Heavy Mace Longsword +1 > --- INVENTORY (25) --- Reinforced Fission Core Light Treads Light Treads Light Treads Advanced Myomer Leg Combat Airjet Experimental Heat Sink Cooling System Medium Battery (150) Gravity Neutralizer Beamcaster Light EM Pulse Cannon Light Assault Rifle Heavy Assault Rifle Heavy Assault Rifle Heavy Assault Rifle 8R-AWN's Boregun Light Cannon Improved Light Cannon Improved Light Cannon Datajack Signal Generator Peak State ------------ > --- POWER ------------ Cooled Ion Engine > --- PROPULSION ------- Light Treads Light Treads Light Treads > --- UTILITY ---------- Huge Storage Unit Light Armor Plating Medium Armor Plating > --- WEAPON ----------- Heavy Mace Longsword +1 > --- INVENTORY -------- Reinforced Fission Core Light Treads Light Treads Light Treads Light Treads Advanced Myomer Leg Combat Airjet Experimental Heat Sink Cooling System Medium Battery Light Armor Plating Light Armor Plating Beamcaster Light EM Pulse Cannon Light Assault Rifle Heavy Assault Rifle Heavy Assault Rifle Heavy Assault Rifle 8R-AWN's Boregun Light Cannon Improved Light Cannon Improved Light Cannon Datajack Signal Generator [Rating: 28] Favorites ----------- Power Cooled Ion Engine Engine Cooled Ion Engine Propulsion Light Treads Treads Light Treads Leg Aluminum Leg Flight Unit Improved Flight Unit Utility Huge Storage Unit Device Heat Sink Storage Huge Storage Unit Processor Targeting Computer Protection Light Armor Plating Weapon Spread Laser Energy Gun Spread Laser Energy Cannon Beam Cannon Ballistic Gun Light Assault Rifle Ballistic Cannon Improved Light Cannon Impact Weapon Heavy Mace Slashing Weapon Longsword +1 Special Melee Weapon Datajack Build | -11 -10 -10 -9 -9 -9 -8 ------- Run | Yrd Mat Min Mat Min Exi Min Slots Evolved 2 | . . . 2 . . . Power . | . . . . . . . Propulsion 1 | . . . 1 . . . Utility 1 | . . . 1 . . . Weapon . | . . . . . . . Parts Attached 44 | 4 10 2 15 3 7 3 Power 4 | 1 2 . . . 1 . Engine 4 | 1 2 . . . 1 . Core . | . . . . . . . Reactor . | . . . . . . . Propulsion 10 | . 3 . 6 . 1 . Treads 9 | . 3 . 5 . 1 . Leg . | . . . . . . . Wheel . | . . . . . . . Hover . | . . . . . . . Flight 1 | . . . 1 . . . Utility 14 | 2 2 . 3 1 3 3 Device 6 | 2 1 . 1 . 1 1 Storage 1 | . 1 . . . . . Processor 1 | . . . . 1 . . Hackware . | . . . . . . . Protection 6 | . . . 2 . 2 2 Artifact . | . . . . . . . Weapon 16 | 1 3 2 6 2 2 . Energy Gun 6 | . 3 . 3 . . . Energy Cannon 1 | . . 1 . . . . Ballistic Gun 3 | 1 . . 1 . 1 . Ballistic Cannon 3 | . . 1 2 . . . Launcher . | . . . . . . . Special Weapon . | . . . . . . . Impact Weapon 1 | . . . . 1 . . Slashing Weapon 1 | . . . . . 1 . Piercing Weapon . | . . . . . . . Special Melee Weapon 1 | . . . . 1 . . Unidentified Prototypes 4 | . 1 . 2 . . 1 Parts Lost 10 | . . . . . 4 6 Power 1 | . . . . . 1 . Propulsion 3 | . . . . . 1 2 Utility 6 | . . . . . 2 4 Weapon . | . . . . . . . Highest Loss Streak 6 | . . . . . 4 6 To Critical Strikes 3 | . . . . . 3 . Average Backups 22 | 4 18 24 24 24 23 22 Power 1 | 1 1 2 2 1 . 1 Propulsion 3 | 2 1 2 5 6 5 5 Utility 8 | . 7 11 8 7 6 5 Weapon 7 | 1 6 7 7 9 9 10 Tool/Special . | . . . . . . . Unused Backups 31 | 6 3 4 5 3 . 10 Power 2 | . 1 . . 1 . . Propulsion 10 | 4 2 . . . . 4 Utility 9 | 1 . 1 4 1 . 2 Weapon 10 | 1 . 3 1 1 . 4 Tool/Special . | . . . . . . . Average Slot Usage (%) 99 | . 99 100 99 100 99 97 Engine 12 | . 14 14 11 11 11 11 Treads 28 | . 23 28 32 33 33 32 Leg 1 | . 4 . . . . . Device 10 | . 13 14 10 . . . Storage 12 | . 14 14 11 11 11 11 Processor 2 | . . . . 10 9 . Protection 4 | . . . 10 11 11 19 Energy Gun 18 | . 26 25 19 . . . Ballistic Cannon 4 | . . 2 1 22 . . Impact Weapon 1 | . . . . . 11 11 Peak Build Rating 28 | 7 14 15 21 19 28 28 Average Rating 15 | 6 12 14 18 17 18 27 On Entrance 15 | 6 7 14 15 19 18 28 Naked Turns . | . . . . . . . Heaviest Build 104 | 12 95 95 100 100 104 104 Greatest Support 60 | 20 40 40 60 60 60 60 Greatest Overweight (x) 2 | . 2 2 2 1 1 2 Average Overweight (x) 1 | . 1 2 1 1 1 1 Largest Inventory Capacity 25 | 8 25 25 25 25 25 25 Average Capacity 23 | 8 22 25 25 25 25 25 Most Carried 25 | 5 25 25 25 25 25 25 Average Carried 22 | 4 18 24 24 24 24 23 Final Capacity 25 | 8 25 25 25 25 25 25 Final Carried 25 | 4 24 25 25 25 25 22 Class Distribution -------------------- 85% | Mutant 14% | Scavenger-Mutant Dominant Class ---------------- Mutant | -10/Materials Mutant | -10/Mines Mutant | -9/Materials Mutant | -9/Mines Scavenger-Mutant | -9/Exiles Mutant | -8/Mines Resources | -11 -10 -10 -9 -9 -9 -8 ----------- Run | Yrd Mat Min Mat Min Exi Min Matter Collected 1245 | 253 349 40 183 271 98 51 Remotely 34 | 34 . . . . . . Salvage Created 2314 | 155 932 18 568 460 98 83 Parts 139 | 15 44 1 43 29 6 1 Haulers Intercepted 6 | . 2 . 4 . . . Recyclers Shooed 7 | . 3 . . 4 . . Parts Field Recycled . | . . . . . . . Retrieved Matter . | . . . . . . . Parts Self-Destructed . | . . . . . . . Prevented . | . . . . . . . Kills | -11 -10 -10 -9 -9 -9 -8 ------- Run | Yrd Mat Min Mat Min Exi Min Combat Hostiles Destroyed 44 | . 15 . 17 11 1 . Melee 1 | . . . . . 1 . Guns 32 | . 15 . 17 . . . Cannons 11 | . . . . 11 . . Classes Destroyed 13 | 2 6 . 2 3 . . Worker 5 | . 1 1 1 2 . . Builder 1 | . . . . 1 . . Tunneler 4 | 4 . . . . . . Hauler 6 | . 2 . 4 . . . Recycler 11 | 1 5 . 1 3 . 1 Mechanic 1 | . . . . 1 . . Operator 1 | . 1 . . . . . Watcher 3 | . 3 . . . . . Swarmer 21 | . 6 . 8 7 . . Grunt 17 | . 9 . 5 3 . . Brawler 1 | . . . . 1 . . Duelist 1 | . . . 1 . . . Sentry 3 | . . . 3 . . . Best Kill Streak 6 | 3 6 1 5 6 1 1 Combat Bots Only 4 | . 2 . 4 4 1 . Max Kills in Single Turn 2 | 1 2 1 1 1 1 1 Gunslinging 1 | . 1 . . . . . Exploded . | . . . . . . . Melee 1 | . . . . . 1 . Uniques/NPCs Destroyed 1 | . . . . . 1 . 8R-AWN (-9/Exiles) Combat | -11 -10 -10 -9 -9 -9 -8 -------- Run | Yrd Mat Min Mat Min Exi Min Hostile Shots Fired 257 | . 60 . 66 49 32 50 Missed 70 | . 18 . 17 20 6 9 Hits 187 | . 42 . 49 29 26 41 Projectile 187 | . 42 . 49 29 26 41 Critical Strikes 24 | . 1 . 2 . 18 3 Damage Taken 2717 | . 478 . 514 252 383 1090 Core 498 | . 72 . 58 47 59 262 Absorbed by Shields 53 | . . . . . 53 . Regen/Repaired (Parts) 52 | . 52 . . . . . Core Remaining (%) 85 | 100 . 71 . . . . Volleys Fired 172 | 13 77 2 48 31 1 . Largest 2 | 2 2 2 2 2 1 . Hottest 140 | 70 130 130 140 66 23 . Shots Fired 315 | 26 128 3 96 61 1 . Gun 253 | 26 128 2 96 . 1 . Cannon 62 | . . 1 . 61 . . Launcher . | . . . . . . . Special . | . . . . . . . Kinetic 86 | 13 11 . . 61 1 . Thermal 228 | 13 116 3 96 . . . Explosive . | . . . . . . . Electromagnetic 1 | . 1 . . . . . Robot Hit Streak 21 | 11 15 8 12 21 . . Robot Miss Streak 9 | 3 6 1 9 3 1 . Penetration Max . | . . . . . . . Secondary Targets 3 | . 1 . 2 . . . Max Gunslinging Chain 1 | . 1 . 1 . . . Shots Hit Robots 274 | 14 89 2 85 36 17 31 Core Hits 207 | 7 71 3 99 18 5 4 Critical Kills . | . . . . . . . Critical Parts Destroyed 1 | . . . . . 1 . Critical Strikes 13 | 2 3 . 1 2 1 4 Burn 6 | 2 3 . 1 . . . Blast 2 | . . . . 2 . . Smash 1 | . . . . . 1 . Sever 4 | . . . . . . 4 Melee Attacks 49 | . . . . . 18 31 Impact 7 | . . . . . 3 4 Slashing 37 | . . . . . 10 27 Piercing . | . . . . . . . Sneak Attacks 6 | . . . . . 5 1 Combat Hostiles . | . . . . . . . Follow-up Attacks 6 | . . . . . 2 4 Damage Inflicted 5199 | 150 1127 23 1088 854 529 1428 Guns 2378 | 150 1120 23 1085 . . . Cannons 845 | . . . . 845 . . Explosions . | . . . . . . . Melee 1957 | . . . . . 529 1428 Ramming 19 | . 7 . 3 9 . . Kinetic 942 | 39 58 . . 845 . . Thermal 2281 | 111 1062 23 1085 . . . Explosive . | . . . . . . . Electromagnetic . | . . . . . . . Impact 200 | . . . . . 87 113 Slashing 1757 | . . . . . 442 1315 Piercing . | . . . . . . . Highest Corruption 2 | . . . 2 2 2 2 Average Corruption 2 | . . . 2 2 2 2 Corruption Purged . | . . . . . . . Corruption Blocked . | . . . . . . . Effects 36 | . . . 10 18 7 1 Message Errors 7 | . . . 2 2 3 . Matter Fused 8 | . . . 1 5 2 . Heat Flow Errors 5 | . . . 2 2 1 . Energy Discharges 6 | . . . 2 3 1 . Parts Rejected 1 | . . . . . . 1 Parts Fused 1 | . . . . 1 . . Data Loss (minor) 4 | . . . 2 2 . . Data Loss (major) 1 | . . . . 1 . . Misfires 1 | . . . 1 . . . Alerts 1 | . . . . 1 . . Weapon Failures 1 | . . . . 1 . . Overload Shots . | . . . . . . . Overflow Damage 94 | . . . . 10 16 68 Projectiles 10 | . . . . 10 . . Explosions . | . . . . . . . Melee 84 | . . . . . 16 68 Knockbacks 11 | . . . . 11 . . Impact . | . . . . . . . Kinetic 9 | . . . . 9 . . Secondary 2 | . . . . 2 . . Self-Inflicted Damage . | . . . . . . . Shots . | . . . . . . . Rammed 5 | . 2 . 2 1 . . Targets Rammed 6 | . 3 . 2 1 . . Kicked . | . . . . . . . Crushed 1 | . 1 . . . . . Highest Temperature 301 | 100 205 33 301 181 271 . Average Temperature 52 | 47 46 17 51 65 137 . Received Heat Transfer 567 | . 207 . 171 18 . 171 Siege Activations . | . . . . . . . Martial Activations . | . . . . . . . Shielding Activations . | . . . . . . . Robots Disrupted . | . . . . . . . Combat Hostiles . | . . . . . . . Robots Corrupted . | . . . . . . . Combat Hostiles . | . . . . . . . Parts Fried . | . . . . . . . Impact Corruptions 2 | . . . . . 2 . Robots Melted . | . . . . . . . Combat Hostiles . | . . . . . . . Parts Melted 7 | 1 5 . 1 . . . Heat Transferred 4606 | 481 2627 30 1468 . . . Parts Sabotaged . | . . . . . . . Parts Stolen . | . . . . . . . Parts Stripped . | . . . . . . . Power Chain Reactions . | . . . . . . . Alert | -11 -10 -10 -9 -9 -9 -8 ------- Run | Yrd Mat Min Mat Min Exi Min Maximum Alert Level 1 | . . . 1 . . . Low Security (%) 98 | 100 100 100 92 100 . 100 Level 1 1 | . . . 7 . . . Level 2 . | . . . . . . . Level 3 . | . . . . . . . Level 4 . | . . . . . . . Level 5 . | . . . . . . . High Security . | . . . . . . . Max Security . | . . . . . . . Peak Influence 218 | 10 122 15 218 141 . 5 Initial 41 | . . 15 . 41 . . Average 39 | 2 40 . 103 66 . . Influence Increases 1570 | 25 508 5 522 505 . 5 Destroy 0b10 Robot/C 1020 | . 300 . 340 380 . . Destroy 0b10 Robot/NC 160 | 25 60 5 30 35 . 5 Destroy Leader 218 | . 80 . 78 60 . . Allied During Kill 29 | . . . . 29 . . Successful Hack 37 | . 23 . 14 . . . Select Force Hacks 30 | . . . 30 . . . Disable Machine 15 | . . . 15 . . . Destroy Structure 1 | . . . . 1 . . Partial Spotted 15 | . . . 15 . . . Lose Combat Pursuer 45 | . 45 . . . . . Influence Decreases 1570 | 25 468 45 415 494 118 5 Entered New Map 209 | . . 25 . 66 118 . Time Decay 1296 | 25 468 20 415 368 . . Lost Part 5 | . . . . . . 5 Lost Ally 60 | . . . . 60 . . Squads Dispatched 6 | . 3 1 1 1 . . Investigation 3 | . 1 1 1 . . . Extermination . | . . . . . . . Reinforcement 2 | . 2 . . . . . Assault 1 | . . . . 1 . . Garrison . | . . . . . . . Intercept . | . . . . . . . Searches Triggered . | . . . . . . . Construction Impeded . | . . . . . . . Haulers Reinforced . | . . . . . . . Active Scanning Responses . | . . . . . . . Cargo Convoy Interrupts . | . . . . . . . Stealth | -11 -10 -10 -9 -9 -9 -8 --------- Run | Yrd Mat Min Mat Min Exi Min Distress Signals 5 | . 2 . 3 . . . Communications Jammed . | . . . . . . . Distress Signals . | . . . . . . . Times Spotted 80 | . 33 . 26 19 1 1 Peak Tracking Total 5 | . 4 . 5 4 2 1 Tactical Retreats 2 | . 2 . . . . . Traps | -11 -10 -10 -9 -9 -9 -8 ------- Run | Yrd Mat Min Mat Min Exi Min Traps Triggered 2 | . 2 . . . . . Indirectly . | . . . . . . . Trap Hack Attempts . | . . . . . . . Triggered . | . . . . . . . Disarmed . | . . . . . . . Reprogrammed . | . . . . . . . Reused . | . . . . . . . Traps Extracted . | . . . . . . . Installed . | . . . . . . . Triggered . | . . . . . . . Machines | -11 -10 -10 -9 -9 -9 -8 ---------- Run | Yrd Mat Min Mat Min Exi Min Machines Disabled 2 | . . 1 1 . . . Max in Single Turn 1 | . . 1 1 . . . Machines Repaired . | . . . . . . . Machines Dismantled . | . . . . . . . Machines Sabotaged . | . . . . . . . Overloaded Fab Kills . | . . . . . . . Hacking | -11 -10 -10 -9 -9 -9 -8 --------- Run | Yrd Mat Min Mat Min Exi Min Machines Accessed 15 | . 7 1 5 . 2 . Terminals 9 | . 5 . 4 . . . Fabricators . | . . . . . . . Repair Stations 1 | . 1 . . . . . Recycling Units 2 | . 1 . 1 . . . Scanalyzers . | . . . . . . . Garrison Access . | . . . . . . . Total Hacks 41 | . 27 1 11 . 2 . Successful 18 | . 12 1 3 . 2 . Failed 22 | . 14 . 8 . . . Catastrophic 2 | . . . 2 . . . Database Lockouts 1 | . 1 . . . . . Manual 26 | . 16 . 9 . 1 . Terminals 31 | . 21 . 10 . . . Fabricators . | . . . . . . . Repair Stations 3 | . 3 . . . . . Recycling Units 4 | . 3 . 1 . . . Scanalyzers . | . . . . . . . Garrison Access . | . . . . . . . Terminal Hacks 7 | . 2 1 2 . 2 . Record 1 | . . . . . 1 . Robot Analysis 3 | . 1 . 2 . . . Prototype ID Bank 1 | . 1 . . . . . Open Door 1 | . . 1 . . . . Proto ID Catalog 1 | . . . . . 1 . Fabricator Hacks . | . . . . . . . Repair Station Hacks 2 | . 2 . . . . . Scan Component 1 | . 1 . . . . . Repair 1 | . 1 . . . . . Recycling Unit Hacks . | . . . . . . . Scanalyzer . | . . . . . . . Garrison Access Hacks . | . . . . . . . Unauthorized Hacks 9 | . 8 . 1 . . . Terminals 8 | . 8 . . . . . Botnet 3 | . 3 . . . . . Skim 5 | . 5 . . . . . Fabricators . | . . . . . . . Repair Stations . | . . . . . . . Recycling Units 1 | . . . 1 . . . Tunnel 1 | . . . 1 . . . Scanalyzers . | . . . . . . . Garrison Access . | . . . . . . . Data Cores Recovered . | . . . . . . . Used . | . . . . . . . Hacking Detections 11 | . 7 . 4 . . . Full Trace Events 1 | . 1 . . . . . Feedback Events . | . . . . . . . Feedback Blocked . | . . . . . . . Robot Schematics Acquired . | . . . . . . . Robots Built . | . . . . . . . Authchips . | . . . . . . . Time . | . . . . . . . Total Robot Build Rating . | . . . . . . . Part Schematics Acquired . | . . . . . . . Parts Built . | . . . . . . . Authchips . | . . . . . . . Time . | . . . . . . . Total Part Build Rating . | . . . . . . . Parts Repaired 1 | . 1 . . . . . Time 26 | . 26 . . . . . Parts Recycled . | . . . . . . . Recycled Matter . | . . . . . . . Retrieved Matter . | . . . . . . . Retrieved Components . | . . . . . . . Parts Scanalyzed . | . . . . . . . Part Schematics Acquired . | . . . . . . . Parts Damaged . | . . . . . . . Bothacking | -11 -10 -10 -9 -9 -9 -8 ------------ Run | Yrd Mat Min Mat Min Exi Min Used RIF Installer . | . . . . . . . Robots Hacked 4 | . . . . . 4 . Non-combat 3 | . . . . . 3 . Combat 1 | . . . . . 1 . Robot Hacks Applied 5 | . . . . . 5 . parse_system 5 | . . . . . 5 . Relay Couplers Released . | . . . . . . . Fabnet Peak Effective % . | . . . . . . . Robots Rewired . | . . . . . . . Allies Hacked . | . . . . . . . Hacks Repelled . | . . . . . . . Allies | -11 -10 -10 -9 -9 -9 -8 -------- Run | Yrd Mat Min Mat Min Exi Min Total Allies 4 | . . . . 4 . . Largest Group 3 | . . . . 3 . . Highest-Rated Group 79 | . . . . 79 . . Highest-Rated Ally 31 | . . . . 31 . . Total Orders . | . . . . . . . Ally Attacks 44 | . . . . 44 . . Total Damage 569 | . . . . 569 . . Kills 8 | . . . . 8 . . Allies Corrupted 1 | . . . . 1 . . Allies Melted . | . . . . . . . Intel | -11 -10 -10 -9 -9 -9 -8 ------- Run | Yrd Mat Min Mat Min Exi Min Active Infowar (turns) 201 | 13 188 . . . . . Seismic 201 | 13 188 . . . . . Robot Analysis Total 3 | . 1 . 2 . . . Derelict Logs Recovered 5 | . . 3 . 2 . . Drone Launches . | . . . . . . . Drone Recoveries . | . . . . . . . Exploration | -11 -10 -10 -9 -9 -9 -8 ------------- Run | Yrd Mat Min Mat Min Exi Min Turns Passed 8584 | 111 2697 2493 1094 1190 846 153 Spaces Moved 2705 | 26 880 618 371 445 329 36 Core . | . . . . . . . Treads 2404 | . 605 618 371 445 329 36 Legs 301 | 26 275 . . . . . Wheels . | . . . . . . . Hover . | . . . . . . . Flight . | . . . . . . . Fastest Speed 120 | 120 120 320 240 240 240 240 Average Speed 262 | 120 257 320 240 240 240 242 Slowest Speed 320 | 120 320 320 320 240 240 320 Overloaded Moves . | . . . . . . . Propulsion Burnouts . | . . . . . . . Robots Hopped . | . . . . . . . Potential Cave-ins . | . . . . . . . Cave-ins Triggered . | . . . . . . . Exploration Rate (%) 58 | 4 94 100 43 86 70 12 Regions Visited 6 Branch Regions 4 Pre-discovered Areas 5 | . 1 2 1 . 1 . Known Exits Taken 1 | . 1 . . . . . Unknown Exits Taken 5 | 1 . 1 1 1 1 . Scrap Searched 4 | . . 2 . 2 . . Spaces Dug . | . . . . . . . Terrain Destroyed 2 | . . . . 2 . . Melee . | . . . . . . . Projectile 2 | . . . . 2 . . AOE . | . . . . . . . Terrain Rammed . | . . . . . . . Walls Destroyed . | . . . . . . . Machines Disabled . | . . . . . . . Actions | -11 -10 -10 -9 -9 -9 -8 --------- Run | Yrd Mat Min Mat Min Exi Min Total 3828 | 82 1180 1133 484 505 371 73 Wait 754 | 37 175 497 9 18 13 5 Move 2699 | 25 879 617 370 444 328 36 Hop . | . . . . . . . Pick Up 53 | . 24 7 12 4 6 . Fast Attach 17 | 2 6 . 7 . . 2 Attach 16 | . 3 . 6 . 4 3 Detach 2 | . . . 2 . . . Swap 24 | 2 5 4 7 3 3 . Drop 43 | 3 8 6 21 4 1 . Fire 172 | 13 77 2 48 31 1 . Melee 42 | . . . . . 15 27 Ram . | . . . . . . . Kick . | . . . . . . . Crush 6 | . 3 . 2 1 . . Escape Stasis . | . . . . . . . Rewire . | . . . . . . . Trap . | . . . . . . . Miscellaneous . | . . . . . . . Route ------- -11/Scrapyard -10/Materials (discovered 5 exits: *Mat x3 / *Min / [*Sub]) -10/Mines (discovered 3 exits: *Mat x2 / [*Sub]) -9/Materials -9/Mines (discovered 3 exits: [*Mat x2] / *Exi) -9/Exiles -8/Mines History --------- Turn | Location | Event 17 | -11/Scrapyard | Discovered new exit (range 3) 112 | -11/Scrapyard | Entered Materials 338 | -10/Materials | Build established: Mutant 379 | -10/Materials | Discovered new exit (range 11) 607 | -10/Materials | Discovered new exit (range 12) 1052 | -10/Materials | Central database locked down 1122 | -10/Materials | Discovered new exit (range 13) 1210 | -10/Materials | Learned 4 Recycling zone layouts 1239 | -10/Materials | Learned Storage garrison access intel 1268 | -10/Materials | Loaded intel: 7 trap records 1270 | -10/Materials | Learned Materials trap positions 1271 | -10/Materials | Learned Materials trap positions 1272 | -10/Materials | Identified exit to Mines 1273 | -10/Materials | Repaired Lgt. Treads 1739 | -10/Materials | Discovered new exit (range 7) 2809 | -10/Materials | Entered Mines 2810 | -10/Mines | Assembled infested the area 2814 | -10/Mines | Met a Derelict shopkeep closing up shop 2815 | -10/Mines | Assisted by a Guerilla fighting off Assembled 2816 | -10/Mines | Met a Derelict bent on vengeance 3589 | -10/Mines | Discovered new exit (range 9) 3649 | -10/Mines | Discovered new exit (range 14) 4212 | -10/Mines | Learned location of Zion (-6) 4276 | -10/Mines | Learned 2 Materials zone layouts 4353 | -10/Mines | Joined a pair of Derelicts in attacking an 0b10 outpost 4739 | -10/Mines | Discovered new exit (range 10) 5302 | -10/Mines | Entered Materials 5302 | -9/Materials | Evolved 2 slots: Propulsion x1, Utility x1 5304 | -9/Materials | Loaded intel: 28 trap records 6181 | -9/Materials | Discovered new exit (range 6) 6243 | -9/Materials | Build established: Scavenger-Mutant 6396 | -9/Materials | Entered Mines 6418 | -9/Mines | Discovered new exit (range 8) 6466 | -9/Mines | Learned Materials trap positions 6718 | -9/Mines | Learned Materials trap positions 6743 | -9/Mines | Build established: Mutant 6787 | -9/Mines | Deemed a non-threat by the Exiles lab entrance 6787 | -9/Mines | Discovered new exit (range 5) 6915 | -9/Mines | Received a Mining Laser from a helpful Derelict 7059 | -9/Mines | Discovered new exit (range 11) 7150 | -9/Mines | Met a Derelict testing a Signal Generator 7174 | -9/Mines | Found Signal Generator 7586 | -9/Mines | Entered Exiles 7644 | -9/Exiles | Met 8R-AWN 7694 | -9/Exiles | Met EX-HEX 7786 | -9/Exiles | Met EX-DEC 7872 | -9/Exiles | Met EX-BIN 7890 | -9/Exiles | Build established: Scavenger-Mutant 8036 | -9/Exiles | Aligned with FarCom system 8038 | -9/Exiles | Given EX-Vault access code 8093 | -9/Exiles | Opened EX-Vault 8113 | -9/Exiles | Found Longsword +1 8157 | -9/Exiles | Warned to stay clear of 0b10 Research branches 8192 | -9/Exiles | Exiles lab attacked by MAIN.C 8343 | -9/Exiles | Attacked by the Exiles 8379 | -9/Exiles | Destroyed 8R-AWN 8384 | -9/Exiles | Found 8R-AWN's Boregun 8406 | -9/Exiles | Lost 4 parts (1p1n2u) 8413 | -9/Exiles | Discovered new exit (range 10) 8432 | -9/Exiles | Left Exiles lab with Longsword +1 8432 | -9/Exiles | Entered Mines 8501 | -8/Mines | 7V-RTL came to Exiles' defense 8514 | -8/Mines | Core integrity fell below 50% 8547 | -8/Mines | Core integrity fell below 20% 8585 | -8/Mines | Destroyed by 7V-RTL with Dispersion Rifle Last Messages --------------- 08561_ Lgt. Armor Plating destroyed. 08567_ Penetrated by Slug. 08567_ R-06 Scavenger collects Rnf. Quantum Reactor. 08568_ 7V-RTL Adv. Powered Armor severed. 08570_ Lgt. Armor Plating destroyed. 08570_ R-06 Scavenger collects Adv. Powered Armor. 08572_ 7V-RTL Prototype Device severed. 08573_ R-06 Scavenger collects Prototype Device. 08576_ Slug penetrates Wall. 08576_ R-06 Scavenger collects Adv. Powered Armor. 08577_ Sneak attack on R-06 Scavenger. 08577_ Destroyed Lgt. Ion Engine. 08577_ R-06 Scavenger destroyed. 08577_ Hvy. Mace follow-up attack on 7V-RTL. 08579_ Acquired 51 matter. 08579_ Lgt. Treads destroyed. 08582_ Slug penetrates Wall. 08585_ Acquired Prototype Device. 08585_ Identified Exp. Power Amplifier. 08585_ Penetrated by Slug. Map ----- +----------------------------------------------------+ | | | | | | | | | ?????????????????????????????????????????????????? | | ?????????????????????????????????????????????????? | | ?????????????????????????????????????????????????? | | ???????????????????????????#####?????????????????? | | ???????????????###?????##### ###???????????????? | | ??????????????## ##?### ##??????????????? | | ??????????????# ## ##?????????????? | | ??????????????# #?????????????? | | ??????????????# ### #?????????????? | | ??????????? ???# """ ##?## ##?????????????? | | ???????????? ??#### """ ##???# #??????????????? | | ????????????? #???## """ #????# #?????????????? | | ?????????????# #???## #????# #????????????? | | ??????????????# #???# ##????# #????????????? | | ???????????????# #?## ##???#?# #????????????? | | ????????????????# ## ##??? ??## ##????????????? | | ?????????????????#" #???# ??#?###?????????????? | | ??????????????????# #??#;?? ##????????????????? | | ??????????????????## ;### ## #????????????????? | | ???????????# ######## #;#;;;; ######???????????? | | ???????????# !*= ????????? | | ????????????######### Y%@ ????????? | | ????????????????????####;# #####?????????????? | | ???????????????????????##? ##?????????????????? | | ??????????????????????????? ##??????????????????? | | ???????????????????????????# #???????????????????? | | ???????????????????????????? #???????????????????? | | ????????????????????????????? ???????????????????? | | ?????????????????????????????##??????????????????? | | ?????????????????????????????????????????????????? | | ?????????????????????????????????????????????????? | | ?????????????????????????????????????????????????? | | ?????????????????????????????????????????????????? | | ?????????????????????????????????????????????????? | | ?????????????????????????????????????????????????? | | ?????????????????????????????????????????????????? | | ?????????????????????????????????????????????????? | | ?????????????????????????????????????????????????? | | ?????????????????????????????????????????????????? | | ?????????????????????????????????????????????????? | | ?????????????????????????????????????????????????? | | ?????????????????????????????????????????????????? | | ?????????????????????????????????????????????????? | | ?????????????????????????????????????????????????? | | ?????????????????????????????????????????????????? | | ?????????????????????????????????????????????????? | +----------------------------------------------------+ Best States ------------- Heat Dissipation 42 Energy Generation 23 Energy Capacity 280 Matter Stores 300 Matter Capacity 300 Sight Range 16 Terrain Scan Density 10 Armor Coverage 375 Evasion (%) 55 Targeting Accuracy 5 Recoil Reduction 3 Item Schematics ----------------- None Robot Schematics ------------------ None Fabricated ------------ Nothing Repaired ---------- Lgt. Treads | 62% | -10/Materials Alien Tech Used ----------------- None Achievements -------------- None Challenges ------------ None Game ------ Seed HybridShockCharge Manual? 0 Play Time 00:50:48 Cumulative 361.7 hours Start 2025.05.26 @ 11:04:14 End 2025.05.26 @ 18:30:20 Sessions 2 Manual Loads 0 Difficulty Rogue Special Mode None Game No. 412 Rogue 412 Adventurer 0 Explorer 0 Win Type - Total 11 Types 8/0/2/1/0/0/0/0/0/0 Lore% 78 Gallery% 80 Achievement% 76 Wizard Run 0 Options --------- Layout 0 ASCII 0 Keyboard 0 Movement Numpad Keybinds 0 Fullscreen 2 Font 18/X11 Map View 76x50 Zoom Use 0% Tactical HUD 1 Map Filters NONE Filters NONE Steam 1 RUN: f852a3db-82b1-41e5-a21d-5d30ccd7e8aa